bitfinex-derivatives/quotes_ETHF0:USTF0_20250911
["timestamp","ask_amount","ask_price","bid_price","bid_amount"]
[1757574600108,0.30625707,4446.9,4446.5,0.122]
[1757574600398,0.30625707,4446.9,4446.6,0.2924]
[1757574600599,0.08,4447.7,4446.7,0.2924]
[1757574601103,0.3176,4447.4,4446.7,0.2924]
[1757574604805,0.08,4447.7,4446.7,0.2924]
[1757574605007,0.3176,4447.8,4446.7,0.2924]
[1757574605208,0.085,4447.7,4446.9,0.2924]
[1757574605408,0.085,4447.7,4447.1,0.2924]
[1757574606808,0.3176,4448.3,4447.6,0.2924]
[1757574607503,0.1214,4449.0,4447.6,0.2924]
[1757574607697,0.3719,4448.5,4447.6,0.2924]
[1757574607902,0.3176,4448.4,4447.6,0.2924]
[1757574609708,0.256,4448.5,4447.6,0.2924]
[1757574610201,0.2247,4448.7,4447.8,0.2924]
[1757574610408,0.4797,4448.7,4447.9,0.2924]
[1757574610613,0.4797,4448.7,4448.1,0.2924]
[1757574610909,0.4797,4448.7,4448.2,0.2924]
[1757574611111,0.4797,4448.7,4448.6,0.2924]
[1757574612312,0.4797,4448.7,4448.6,4.2924]
[1757574615211,0.4797,4448.7,4448.6,4.6906]
[1757574615410,0.6925,4448.7,4448.6,0.6906]
[1757574615604,1.0101,4448.7,4448.6,0.6906]
[1757574616113,1.0101,4448.7,4448.6,0.3982]
[1757574617413,0.4797,4448.7,4448.6,0.6906]
[1757574618416,1.0101,4448.7,4448.6,0.6906]
[1757574619917,1.0101,4448.7,4448.6,0.3982]
[1757574620119,1.0101,4448.7,4448.6,0.6906]
[1757574620315,1.204,4448.7,4448.6,0.3982]
[1757574623017,0.3176,4448.6,4446.1,1.01187]
[1757574623323,0.3176,4448.4,4447.1,0.2924]
[1757574624319,0.2248,4448.3,4447.1,0.69706]
[1757574624521,0.3176,4448.2,4447.1,0.69706]
[1757574625019,0.2248,4448.3,4447.1,0.69706]
[1757574625225,0.3176,4448.2,4447.1,0.2924]
[1757574626923,0.7243,4447.2,4447.1,0.2015]
[1757574627221,0.6998,4447.1,4447.0,0.2033]
[1757574627524,0.4979,4446.7,4446.6,0.3964]
[1757574627922,0.6998,4446.7,4446.6,0.2033]
[1757574628117,0.6998,4446.7,4446.3,0.3127]
[1757574628118,0.3028,4446.6,4445.8,0.3127]
[1757574628322,0.3028,4446.4,4445.8,0.3127]
[1757574628523,0.6998,4446.4,4446.3,0.2033]
[1757574628722,0.6998,4446.4,4446.3,0.3964]
[1757574630026,0.6998,4446.4,4445.8,0.71747]
[1757574630323,0.6998,4446.4,4446.3,0.2033]
[1757574631027,0.3028,4446.3,4445.3,0.71752]
[1757574631226,0.397,4446.4,4445.3,0.71752]
[1757574631227,0.3028,4446.4,4445.3,0.71752]
[1757574631919,0.1178,4446.5,4445.5,0.40481]
[1757574632119,0.3028,4446.4,4445.6,0.3127]
[1757574632326,0.4979,4446.9,4446.8,0.3964]
[1757574632628,0.3028,4447.4,4446.8,0.7091]
[1757574634530,0.4979,4447.4,4447.3,0.2033]
[1757574634731,0.6998,4447.4,4447.3,0.2033]
[1757574635028,0.3028,4447.3,4446.7,0.7174]
[1757574635420,0.6998,4447.3,4447.2,0.2033]
[1757574635617,0.1951,4447.4,4447.3,0.7091]
[1757574635825,0.6998,4447.4,4447.3,0.3964]
[1757574636728,0.397,4447.4,4446.6,0.7174]
[1757574636926,0.3028,4447.3,4446.7,0.40469]
[1757574637624,0.6998,4447.3,4447.2,0.2033]
[1757574637822,0.6998,4447.3,4447.2,0.3964]
[1757574639425,0.6998,4447.3,4447.2,0.2033]
[1757574639631,0.3129,4447.0,4446.9,0.3964]
[1757574639824,0.5148,4447.0,4446.9,0.3964]
[1757574640224,0.8176,4447.0,4446.9,0.3964]
[1757574641024,0.8176,4447.0,4446.9,0.7091]
[1757574641219,0.6998,4447.0,4446.9,0.7091]
[1757574641431,0.4979,4447.0,4446.9,0.7091]
[1757574644227,0.249,4447.3,4446.9,0.7091]
[1757574644420,0.3028,4447.2,4447.1,0.3964]
[1757574644627,0.4979,4447.2,4447.1,0.7091]
[1757574644824,0.5518,4447.4,4447.3,0.3964]
[1757574645028,0.5518,4447.4,4447.3,0.7091]
[1757574645331,0.9488,4447.4,4447.3,0.2033]
[1757574645529,0.9488,4447.4,4446.9,0.3127]
[1757574646031,0.3028,4447.3,4447.2,0.2033]
[1757574646227,0.6998,4447.3,4447.2,0.2033]
[1757574646729,0.6998,4447.3,4446.5,0.47531]
[1757574646926,0.3028,4447.2,4446.5,0.71741]
[1757574647321,0.3028,4447.3,4446.5,0.71741]
[1757574647627,0.4979,4446.6,4446.5,1.11381]
[1757574648633,0.1178,4447.0,4446.9,0.40468]
[1757574648935,0.4431,4447.4,4447.3,0.7091]
[1757574649126,0.645,4447.4,4447.3,0.7091]
[1757574649329,0.9478,4447.4,4447.3,0.3964]
[1757574649835,1.1726,4447.4,4447.3,0.3964]
[1757574650033,0.8698,4447.4,4446.8,0.40469]
[1757574650234,0.6998,4446.9,4446.8,0.3964]
[1757574650440,0.6998,4446.9,4446.8,0.2033]
[1757574650834,0.6998,4446.9,4446.8,0.7091]
[1757574651729,0.6998,4446.9,4446.8,0.3964]
[1757574654428,0.4979,4446.9,4446.8,0.7091]
[1757574654737,0.6998,4446.9,4446.8,0.3964]
[1757574655039,0.6998,4446.9,4446.0,0.3127]
[1757574655240,0.9458,4446.9,4446.0,0.3127]
[1757574657336,0.3141,4446.8,4445.7,0.40478]
[1757574657638,0.7319,4445.7,4445.6,0.3868]
[1757574658841,0.7319,4445.7,4445.6,0.1941]
[1757574659435,0.3141,4445.6,4444.8,0.3206]
[1757574659635,0.7319,4444.9,4444.8,0.3868]
[1757574660234,0.5182,4444.9,4444.8,0.7074]
[1757574661042,0.3141,4444.9,4444.8,0.7074]
[1757574661234,0.5182,4444.9,4444.8,0.7074]
[1757574661446,0.7319,4444.9,4444.8,0.3868]
[1757574662130,0.7319,4444.9,4444.8,0.1941]
[1757574663250,0.7319,4444.9,4444.8,0.3868]
[1757574663748,0.7319,4444.9,4444.8,0.7074]
[1757574664844,0.7319,4444.9,4444.8,0.3868]
[1757574665543,0.7319,4444.9,4444.8,0.7074]
[1757574665756,0.7319,4444.9,4444.8,0.3868]
[1757574667641,0.7319,4444.9,4444.4,0.3206]
[1757574667846,0.8515,4444.5,4444.4,0.7074]
[1757574668044,0.8515,4444.5,4444.4,0.3868]
[1757574668245,0.8515,4444.5,4444.4,0.1941]
[1757574668447,0.3141,4445.4,4444.8,0.3868]
[1757574668648,0.5182,4445.4,4445.3,0.7074]
[1757574668849,0.7319,4445.4,4445.3,0.3868]
[1757574669048,0.9568,4445.4,4445.3,0.3868]
[1757574671148,0.9568,4445.4,4444.6,0.40489]
[1757574671352,0.6427,4445.4,4444.8,0.40487]
[1757574671554,0.8515,4445.0,4444.9,1.11226]
[1757574672657,0.8515,4445.0,4444.9,0.7074]
[1757574673051,0.5182,4445.0,4444.9,0.7074]
[1757574673257,0.8515,4445.0,4444.9,0.7074]
[1757574674259,0.7431,4445.4,4445.3,1.11223]
[1757574674463,0.7431,4445.4,4445.3,0.7074]
[1757574676163,0.9568,4445.4,4445.3,0.7074]
[1757574678267,0.539,4445.4,4445.3,0.7074]
[1757574678466,0.2249,4445.4,4445.3,0.7074]
[1757574681569,0.539,4445.4,4445.3,0.7074]
[1757574682267,0.2249,4445.4,4445.3,0.7074]
[1757574683166,0.429,4445.4,4445.3,0.7074]
[1757574683366,0.7431,4445.4,4445.3,0.7074]
[1757574686163,0.2249,4445.4,4445.3,4.7074]
[1757574686469,0.3141,4445.9,4445.8,1.11218]
[1757574687264,0.1196,4446.5,4446.3,0.40474]
[1757574687469,0.7098,4446.4,4446.3,0.80504]
[1757574688071,0.7098,4446.4,4446.3,0.1969]
[1757574688371,0.7098,4446.4,4446.3,1.3903754]
[1757574689163,0.7098,4446.4,4445.6,0.3057]
[1757574689164,0.1247,4446.0,4445.6,0.3057]
[1757574689368,0.8345,4446.0,4445.9,1.1934754]
[1757574689756,0.8345,4446.0,4445.9,1.3903754]
[1757574689961,0.8345,4446.0,4445.9,1.5937754]
[1757574690270,0.8345,4446.0,4445.9,1.8994754]
[1757574690669,0.5151,4446.0,4445.9,1.8994754]
[1757574690873,0.5151,4446.3,4446.2,0.40475]
[1757574691171,0.7098,4446.3,4446.2,0.80505]
[1757574691572,0.7098,4446.3,4446.2,0.4003]
[1757574695165,0.7098,4446.3,4446.2,0.1969]
[1757574697672,0.4011,4446.3,4445.6,0.4048]
[1757574697871,0.4011,4445.8,4445.7,0.6423]
[1757574698173,0.4011,4445.8,4445.7,4.88707776]
[1757574698174,0.7098,4445.8,4445.7,4.88707776]
[1757574698374,0.7098,4445.8,4445.7,5.12907776]
[1757574698875,0.5151,4445.8,4445.7,5.12907776]
[1757574699672,0.7098,4445.8,4445.7,4.88707776]
[1757574699975,0.7098,4445.8,4445.7,1.6323754]
[1757574701273,0.7098,4445.8,4445.7,1.8357754]
[1757574702777,0.7098,4445.8,4445.7,1.3903754]
[1757574703279,0.7098,4445.8,4445.7,1.1934754]
[1757574703581,0.7098,4445.8,4445.7,1.3903754]
[1757574705175,0.1196,4446.5,4445.7,1.5937754]
[1757574705379,0.1196,4447.5,4446.9,0.706]
[1757574705673,0.1247,4448.0,4447.5,0.4279]
[1757574705872,0.6398,4448.0,4447.9,1.5937754]
[1757574706071,0.8345,4448.0,4447.9,1.5937754]
[1757574706478,0.8345,4448.0,4447.9,1.36870783]
[1757574706780,0.8345,4448.0,4447.9,1.67440783]
[1757574707572,6.02772784,4448.0,4446.6,0.3057]
[1757574707775,0.3087,4447.4,4446.9,0.96840783]
[1757574707981,0.5151,4447.0,4446.9,0.706]
[1757574708167,0.4011,4447.9,4447.8,0.1969]
[1757574708370,0.1247,4447.5,4447.2,0.3057]
[1757574708681,0.1247,4447.5,4447.4,0.1969]
[1757574708880,0.5258,4447.5,4447.4,0.1969]
[1757574709176,0.8345,4447.5,4447.4,1.16530783]
[1757574709774,0.8345,4447.5,4446.7,0.242]
[1757574709978,0.8345,4447.5,4447.1,0.96840783]
[1757574709979,0.7098,4447.2,4447.1,0.96840783]
[1757574710580,0.8345,4447.0,4446.9,0.1969]
[1757574710772,0.8345,4447.0,4446.9,1.16530783]
[1757574711667,0.8345,4447.0,4446.9,0.96840783]
[1757574712774,0.7098,4446.4,4446.0,0.96840783]
[1757574712974,0.7098,4446.4,4444.5,0.0702]
[1757574712975,0.5151,4445.6,4445.5,0.706]
[1757574713375,0.1247,4446.0,4445.5,0.706]
[1757574713674,0.3087,4445.9,4445.8,0.4003]
[1757574713982,0.3087,4445.9,4445.8,0.706]
[1757574714180,0.3087,4445.9,4445.8,1.67440783]
[1757574716579,0.3087,4446.4,4445.8,1.67440783]
[1757574716884,0.7098,4446.4,4446.3,1.16530783]
[1757574717088,0.7098,4446.4,4445.8,0.3057]
[1757574717383,0.6815,4446.3,4446.2,0.96840783]
[1757574719281,0.6815,4446.3,4445.3,21.94682]
[1757574719488,0.6815,4446.1,4446.0,0.96840783]
[1757574719687,0.6815,4446.1,4445.5,2.98986648]
[1757574719885,0.6815,4446.1,4446.0,0.96840783]
[1757574720184,0.6815,4446.1,4446.0,1.38700783]
[1757574720388,0.6815,4446.1,4446.0,1.70370783]
[1757574721191,0.6815,4446.1,4446.0,1.38700783]
[1757574722689,0.6815,4446.1,4446.0,0.4186]
[1757574722895,0.6815,4446.1,4446.0,1.38700783]
[1757574725084,0.6815,4446.1,4446.0,1.18030783]
[1757574725490,0.2907,4447.4,4446.8,0.4186]
[1757574725692,0.2907,4447.4,4447.3,1.70370783]
[1757574726285,0.486,4447.4,4447.3,1.70370783]
[1757574728095,0.2907,4447.3,4446.5,0.3167]
[1757574728296,0.6815,4446.6,4446.5,0.7353]
[1757574728888,0.6815,4446.6,4446.5,0.2119]
[1757574729195,0.486,4446.0,4445.9,0.7353]
[1757574729388,0.486,4446.0,4445.9,1.70370783]
[1757574731390,0.6815,4446.0,4445.9,1.70370783]
[1757574731589,0.8059,4446.0,4445.9,1.38700783]
[1757574731790,0.8059,4446.0,4445.9,1.70370783]
[1757574734000,0.8059,4446.0,4445.9,1.38700783]
[1757574734902,0.8059,4446.0,4445.9,1.70370783]
[1757574735094,0.8059,4446.0,4445.9,1.38700783]
[1757574735294,0.8059,4446.0,4445.9,1.70370783]
[1757574740106,0.8059,4446.0,4445.9,1.38700783]
[1757574740402,0.8059,4446.0,4445.9,0.96840783]
[1757574740703,0.8059,4446.0,4445.9,1.18030783]
[1757574741404,0.8059,4446.0,4445.9,1.38700783]
[1757574743406,0.8059,4446.0,4445.9,1.70370783]
[1757574745004,0.8059,4446.0,4445.9,1.38700783]
[1757574746207,0.8059,4446.0,4445.9,1.70370783]
[1757574746510,0.8059,4446.0,4445.9,1.38700783]
[1757574746807,0.8059,4446.0,4445.9,1.70370783]
[1757574748904,0.8059,4446.0,4445.9,1.38700783]
[1757574749201,0.8059,4446.0,4445.9,1.18030783]
[1757574749400,0.8059,4446.0,4445.9,0.96840783]
[1757574750400,0.8059,4446.0,4445.9,1.38800783]
[1757574752007,0.8059,4446.0,4445.9,1.17700783]
[1757574752208,0.8059,4446.0,4445.9,1.38800783]
[1757574752610,0.8059,4446.0,4445.9,1.68280783]
[1757574752802,0.8059,4446.0,4445.9,0.7144]
[1757574753004,0.8059,4446.0,4445.9,1.68280783]
[1757574754707,0.8059,4446.0,4445.9,1.38800783]
[1757574755103,0.8059,4446.0,4443.6,32.391]
[1757574755305,0.2889,4444.8,4444.7,0.7144]
[1757574755609,0.1171,4445.5,4444.8,0.40487]
[1757574755809,0.6902,4445.4,4445.3,0.2086]
[1757574756803,0.2889,4445.3,4445.0,0.96840783]
[1757574757112,0.6902,4445.1,4445.0,1.17700783]
[1757574757507,0.6902,4445.1,4445.0,0.2086]
[1757574757810,0.6902,4445.1,4445.0,0.7144]
[1757574759414,0.6902,4445.1,4445.0,1.68280783]
[1757574759809,0.6902,4445.1,4445.0,1.38800783]
[1757574761203,0.6902,4445.1,4445.0,1.68280783]
[1757574761707,0.2889,4445.4,4445.1,0.2948]
[1757574761911,0.4013,4445.8,4445.7,0.4196]
[1757574762112,0.6902,4445.8,4445.7,1.17700783]
[1757574762317,0.6902,4445.8,4445.7,0.96840783]
[1757574762916,0.6902,4445.8,4445.7,1.17700783]
[1757574763212,0.6902,4445.8,4445.7,0.96840783]
[1757574763410,0.6902,4445.8,4445.7,0.4196]
[1757574764413,0.2889,4445.7,4445.4,0.96840783]
[1757574764612,0.8073,4445.5,4445.4,1.17700783]
[1757574764915,0.8073,4445.5,4445.4,0.2086]
[1757574765217,0.6902,4445.3,4445.2,0.96840783]
[1757574765411,0.6902,4445.3,4445.2,1.17700783]
[1757574765716,0.1947,4445.2,4445.1,0.4196]
[1757574765916,0.4013,4445.2,4445.1,1.38800783]
[1757574766118,0.6902,4445.2,4445.1,1.38800783]
[1757574767317,0.6902,4445.2,4445.1,0.4196]
[1757574767519,0.6902,4445.2,4445.1,1.38800783]
[1757574768314,0.6902,4445.2,4445.1,0.4196]
[1757574768614,0.6902,4445.2,4445.1,0.7144]
[1757574770418,0.6902,4445.2,4445.1,1.11923]
[1757574771117,0.6902,4445.2,4445.1,0.7144]
[1757574772316,0.1947,4444.5,4444.4,1.61382125]
[1757574772521,0.5184,4445.0,4444.9,0.2086]
[1757574773116,0.8073,4445.0,4444.9,0.2086]
[1757574779223,0.406,4445.0,4444.9,0.2086]
[1757574779423,0.2889,4445.0,4444.9,0.7127]
[1757574780318,0.2925,4445.4,4445.3,0.6941]
[1757574781626,0.2925,4445.4,4445.3,1.88832125]
[1757574783127,0.5,4445.4,4445.3,1.88832125]
[1757574783330,0.1244,4446.0,4445.4,0.2931]
[1757574783626,0.7132,4446.1,4446.0,0.401]
[1757574784022,0.7132,4446.1,4446.0,0.197]
[1757574784527,0.5,4445.6,4445.5,1.88832125]
[1757574785626,0.2925,4445.6,4445.5,1.88832125]
[1757574785929,0.5,4445.6,4445.5,1.88832125]
[1757574787729,0.2925,4445.6,4445.5,0.6941]
[1757574788029,0.5,4445.6,4445.5,0.6941]
[1757574789833,0.7132,4445.6,4445.5,0.6941]
[1757574790130,0.7132,4445.9,4445.8,0.6941]
[1757574790319,0.7132,4445.9,4445.8,0.401]
[1757574790633,0.4207,4445.9,4445.2,0.2931]
[1757574790932,0.5,4445.3,4445.2,0.6941]
[1757574791335,0.2925,4445.3,4445.2,0.6941]
[1757574794535,0.5,4445.3,4445.2,0.6941]
[1757574795538,0.7132,4445.3,4445.2,0.6941]
[1757574795831,0.7132,4445.3,4445.2,0.401]
[1757574797426,0.7132,4445.3,4444.9,0.5341]
[1757574797737,0.835,4445.0,4444.9,0.197]
[1757574798030,0.835,4445.0,4444.9,0.401]
[1757574798235,0.835,4445.0,4444.9,0.6941]
[1757574798737,0.7132,4445.0,4444.9,0.6941]
[1757574799839,0.835,4445.0,4444.9,0.6941]
[1757574801542,0.5,4445.0,4444.9,0.6941]
[1757574802540,0.835,4445.0,4444.9,0.6941]
[1757574804844,0.5,4445.0,4444.9,1.88832125]
[1757574805645,0.835,4445.0,4444.9,0.6941]
[1757574805845,0.835,4445.0,4444.9,0.401]
[1757574807642,0.5425,4445.0,4444.5,1.19422125]
[1757574807943,0.5039,4444.6,4444.5,2.31920125]
[1757574808248,0.5039,4444.6,4444.5,5.20465779]
[1757574808543,0.5039,4444.6,4444.5,4.79977779]
[1757574812150,0.7116,4444.6,4444.5,4.79977779]
[1757574812352,0.7116,4444.6,4444.5,0.7201]
[1757574812550,0.7116,4444.6,4444.5,0.4087]
[1757574815957,0.3343,4444.0,4443.9,1.12503]
[1757574816147,0.8334,4444.0,4443.9,0.6487]
[1757574816452,0.8334,4444.0,4443.9,0.9601]
[1757574817450,0.2914,4444.4,4444.3,0.4049]
[1757574817656,0.2914,4444.4,4444.3,2.31922125]
[1757574819559,0.5039,4444.4,4444.3,2.31922125]
[1757574821553,0.7116,4444.4,4444.3,1.91432125]
[1757574821859,0.7116,4444.4,4444.3,1.60292125]
[1757574822460,0.7116,4444.4,4444.3,1.91432125]
[1757574828973,0.7116,4444.4,4444.3,0.4087]
[1757574829268,0.2914,4444.3,4444.0,1.74562125]
[1757574829472,0.7116,4444.3,4444.2,0.1993]
[1757574831865,0.7116,4444.3,4444.2,1.16934771]
[1757574833170,0.7116,4444.3,4444.2,0.1993]
[1757574833373,0.7116,4444.3,4444.2,1.16934771]
[1757574833965,0.7116,4444.3,4444.2,1.37874771]
[1757574834267,0.7116,4444.3,4444.2,1.69014771]
[1757574834774,0.7116,4444.3,4444.2,1.37874771]
[1757574835368,0.7116,4444.3,4443.6,0.3114]
[1757574835563,0.2914,4444.2,4443.8,0.3114]
[1757574835773,0.2914,4444.2,4444.1,0.1993]
[1757574836077,0.2914,4444.4,4444.2,0.3114]
[1757574836368,0.2914,4444.4,4444.3,0.7201]
[1757574836766,0.2914,4444.4,4444.3,1.69014771]
[1757574837377,0.5039,4444.4,4444.3,1.69014771]
[1757574838273,0.7112,4444.4,4444.3,0.1993]
[1757574840271,0.7112,4444.4,4444.3,1.66224771]
[1757574842583,0.1218,4445.0,4444.3,1.66224771]
[1757574842884,0.4937,4444.9,4444.8,1.66634771]
[1757574843181,0.4937,4444.9,4444.8,0.6963]
[1757574843373,0.4937,4444.9,4444.8,1.66634771]
[1757574843573,0.4937,4444.9,4444.8,0.6963]
[1757574843771,0.701,4444.9,4444.8,0.6963]
[1757574844881,0.3237,4445.5,4445.4,0.2034]
[1757574845080,0.531,4445.5,4445.4,1.66634771]
[1757574845474,0.8228,4445.5,4445.4,1.66634771]
[1757574846883,0.8228,4445.5,4445.4,1.37604771]
[1757574848486,0.8228,4445.5,4445.4,1.66634771]
[1757574849291,0.8228,4445.5,4445.4,0.6963]
[1757574849587,0.8228,4445.5,4445.4,0.406]
[1757574854592,0.531,4445.5,4444.9,0.2903]
[1757574854887,0.701,4445.4,4445.3,0.6963]
[1757574855092,0.8228,4446.0,4445.9,0.2034]
[1757574855290,0.8228,4446.0,4445.7,0.97004771]
[1757574855492,0.4092,4445.8,4445.7,1.17344771]
[1757574855681,0.701,4445.8,4445.7,1.17344771]
[1757574858795,0.701,4445.8,4445.7,0.2034]
[1757574859089,0.4092,4445.8,4445.4,0.97004771]
[1757574859289,0.5365,4445.5,4445.4,0.97004771]
[1757574859500,0.8283,4445.5,4445.4,0.97004771]
[1757574859695,0.8283,4445.5,4445.4,1.17344771]
[1757574862197,0.8283,4445.5,4445.4,1.66634771]
[1757574863304,0.1218,4446.0,4445.4,5.8912977]
[1757574863600,0.4937,4446.4,4446.3,0.406]
[1757574863800,0.4937,4446.4,4446.3,1.66634771]
[1757574864600,0.701,4446.4,4446.3,0.406]
[1757574866900,0.2019,4445.2,4445.1,0.6963]
[1757574867197,0.4937,4445.2,4445.1,3.60439686]
[1757574867394,0.4937,4445.2,4445.1,4.57444457]
[1757574869403,0.4937,4445.2,4445.1,3.60439686]
[1757574869604,0.4937,4445.2,4445.1,4.57444457]
[1757574871098,0.1273,4446.0,4445.2,0.3207]
[1757574871305,0.2913,4446.0,4445.9,1.69984771]
[1757574871509,0.1273,4446.5,4445.9,1.37914771]
[1757574871799,0.6944,4446.4,4446.3,0.7298]
[1757574875202,0.6944,4446.4,4446.3,0.4091]
[1757574877306,0.6944,4446.4,4446.3,0.7298]
[1757574886310,0.6944,4446.4,4446.3,0.4091]
[1757574890621,0.9324,4446.4,4446.3,0.4091]
[1757574892623,0.9324,4446.4,4446.3,0.7298]
[1757574894229,0.6944,4446.4,4446.3,1.92344187]
[1757574894421,0.4992,4446.9,4446.8,0.1952]
[1757574894622,0.9324,4446.9,4446.8,0.4091]
[1757574894929,0.9324,4446.9,4446.8,0.7298]
[1757574895331,0.4031,4446.3,4446.2,0.5159]
[1757574895531,0.6944,4446.3,4446.2,0.7298]
[1757574895829,0.2913,4446.3,4446.2,0.7298]
[1757574896029,0.2913,4446.3,4446.2,1.92344187]
[1757574899625,32.5243,4447.0,4446.2,1.92344187]
[1757574899929,0.637,4446.9,4446.8,0.2095]
[1757574900135,0.399,4446.9,4446.8,0.2095]
[1757574900324,0.5198,4446.9,4446.8,0.7265]
[1757574900523,0.7578,4446.9,4446.8,0.7265]
[1757574900934,0.9544,4446.9,4446.8,0.7265]
[1757574901230,0.7164,4446.9,4446.8,0.4164]
[1757574903632,0.7164,4446.9,4446.8,0.7265]
[1757574904825,0.3174,4446.9,4446.8,0.7265]
[1757574905026,0.237,4447.4,4446.9,0.3101]
[1757574905330,0.636,4447.4,4447.3,0.2095]
[1757574905830,0.7164,4447.4,4447.3,1.92014187]
[1757574906020,0.3174,4447.4,4447.3,1.92014187]
[1757574906219,0.7164,4447.9,4447.8,0.4164]
[1757574906428,0.7164,4447.9,4447.8,0.7265]
[1757574908634,0.5198,4447.9,4447.8,0.7265]
[1757574909228,0.3174,4447.9,4447.8,0.7265]
[1757574911024,0.5198,4447.9,4447.8,0.7265]
[1757574911632,0.5198,4448.3,4448.2,0.71464]
[1757574911831,0.3174,4448.3,4448.2,2.32468187]
[1757574912627,0.3174,4448.9,4448.4,0.40453]
[1757574912935,0.3174,4448.9,4448.8,0.2095]
[1757574912936,0.7164,4448.9,4448.8,0.2095]
[1757574924338,0.1251,4448.5,4448.4,1.40314187]
[1757574924544,0.8415,4448.5,4448.4,0.2095]
[1757574925440,1.71774187,4448.5,4447.4,0.71472]
[1757574925639,1.71774187,4448.5,4447.0,0.40466]
[1757574925640,0.8415,4447.5,4447.0,0.40466]
[1757574926041,0.399,4447.1,4447.0,0.61416]
[1757574926239,0.7164,4447.1,4447.0,0.61416]
[1757574926546,0.7164,4447.1,4447.0,1.80780187]
[1757574927547,0.7164,4447.1,4447.0,1.11336]
[1757574927949,0.7164,4447.1,4447.0,2.30700187]
[1757574929247,0.7164,4447.1,4447.0,1.11336]
[1757574929544,0.7164,4447.1,4447.0,1.61004187]
[1757574929746,0.7164,4447.1,4447.0,2.01470187]
[1757574930135,0.7164,4447.1,4447.0,2.30700187]
[1757574932342,0.5324,4447.5,4447.1,0.69694]
[1757574932542,0.6978,4447.2,4447.1,0.89614]
[1757574932839,0.6978,4447.2,4447.1,1.10704]
[1757574933845,0.6978,4447.2,4447.1,0.1992]
[1757574934044,0.6978,4446.8,4446.7,0.1992]
[1757574934450,0.4073,4446.8,4446.6,1.43064187]
[1757574934652,0.2905,4446.7,4446.6,1.43064187]
[1757574934848,0.6978,4446.7,4446.6,1.19364187]
[1757574935648,0.1278,4446.5,4446.1,0.236]
[1757574935854,0.6978,4446.2,4446.1,0.4352]
[1757574937054,0.6978,4446.2,4446.1,0.9384]
[1757574937650,0.4983,4446.2,4446.1,0.9384]
[1757574939457,0.6978,4446.2,4446.1,0.9384]
[1757574939650,0.6978,4446.2,4446.1,0.6461]
[1757574939852,0.2905,4446.1,4446.0,0.5199]
[1757574940046,0.6978,4446.1,4444.9,1.19364187]
[1757574940251,0.8256,4445.0,4444.9,1.60374187]
[1757574940456,0.8256,4445.0,4444.9,1.89604187]
[1757574940656,0.8256,4445.0,4444.9,4.79921622]
[1757574942356,0.8256,4445.0,4444.9,3.60557435]
[1757574942559,0.8256,4445.0,4444.9,4.79921622]
[1757574943256,0.8256,4445.0,4444.4,0.2923]
[1757574943458,0.2905,4444.9,4444.4,1.72194187]
[1757574943658,0.4983,4444.5,4444.4,2.13204187]
[1757574944062,0.4983,4444.5,4444.4,5.10970654]
[1757574945062,0.8256,4444.5,4444.4,5.10970654]
[1757574946156,0.8256,4444.5,4444.4,4.81740654]
[1757574946361,0.8256,4444.5,4444.4,5.10970654]
[1757574946664,0.8256,4444.5,4444.4,3.62376467]
[1757574947866,0.8256,4444.5,4444.4,0.6461]
[1757574948366,0.8256,4444.5,4444.4,0.9384]
[1757574949567,0.8256,4444.5,4444.4,0.6461]
[1757574950762,0.8256,4444.5,4444.4,0.4352]
[1757574950963,0.8256,4444.5,4443.9,1.60374187]
[1757574950964,0.5351,4444.0,4443.9,1.60374187]
[1757574951168,0.8256,4444.0,4443.9,1.83974187]
[1757574952271,0.8256,4444.0,4443.2,0.405]
[1757574952463,0.8256,4444.0,4443.9,0.1992]
[1757574952664,0.8256,4444.0,4443.9,1.16937832]
[1757574953068,0.8256,4444.0,4443.9,0.97017832]
[1757574953873,0.8256,4444.0,4443.3,0.236]
[1757574954171,0.6978,4443.9,4443.8,0.97017832]
[1757574954771,0.6978,4443.9,4443.3,0.236]
[1757574954973,0.6978,4443.9,4443.8,0.97017832]
[1757574956771,0.6978,4443.4,4442.9,0.2923]
[1757574956973,0.8256,4443.0,4442.9,1.16937832]
[1757574957472,0.8256,4443.0,4442.9,1.38027832]
[1757574957985,0.8256,4443.0,4442.4,0.236]
[1757574957986,5.50527832,4443.0,4441.8,0.2979]
[1757574958179,0.512,4442.0,4441.9,0.7173]
[1757574958377,0.1163,4442.5,4441.9,4.6759074]
[1757574958574,0.2125,4442.4,4442.3,0.4194]
[1757574958776,0.512,4442.4,4442.3,1.68747832]
[1757574959284,0.7069,4442.4,4442.3,1.68747832]
[1757574959586,0.512,4442.4,4442.3,1.68747832]
[1757574960083,0.512,4442.9,4442.8,0.7173]
[1757574960282,0.512,4442.9,4442.8,1.68747832]
[1757574960873,0.7069,4442.9,4442.8,1.68747832]
[1757574961083,0.7069,4442.9,4442.8,1.38957832]
[1757574961280,0.2995,4442.8,4442.5,0.97017832]
[1757574961786,0.4074,4442.6,4442.5,1.17737832]
[1757574961982,0.7069,4442.6,4442.5,0.2072]
[1757574962182,0.512,4442.1,4442.0,1.38957832]
[1757574962384,0.7069,4442.1,4442.0,1.38957832]
[1757574963289,0.7069,4442.1,4442.0,0.4194]
[1757574963590,0.7069,4442.1,4442.0,1.68747832]
[1757574965191,0.7069,4442.1,4442.0,0.7173]
[1757574965391,0.7069,4442.1,4442.0,1.68747832]
[1757574967291,0.7069,4442.1,4442.0,1.38957832]
[1757574968290,0.7069,4442.1,4442.0,1.68747832]
[1757574968789,0.7069,4442.1,4442.0,1.38957832]